[Event "Live Chess"]
[Site "Chess.com"]
[Date "2023.05.20"]
[Round "-"]
[White "BJAW87"]
[Black "SupremeTactician"]
[Result "0-1"]
[WhiteElo "1438"]
[BlackElo "2364"]
[TimeControl "300"]
[EndTime "14:28:01 PDT"]
[Termination "SupremeTactician won by resignation"]

1. e4 {[%clk 0:04:58.6]} 1... e5 {[%clk 0:04:57.8]} 2. Nc3 {[%clk 0:04:57.8]}
2... Nc6 {[%clk 0:04:57]} 3. f4 {[%clk 0:04:55.5]} 3... Bc5 {[%clk 0:04:52.5]}
4. fxe5 {[%clk 0:04:52.9]} 4... d6 {[%clk 0:04:51.6]} 5. exd6 {[%clk 0:04:45.7]}
5... cxd6 {[%clk 0:04:46]} 6. Nf3 {[%clk 0:04:42.8]} 6... Nf6 {[%clk 0:04:44.2]}
7. d4 {[%clk 0:04:30.7]} 7... Bb4 {[%clk 0:04:40.6]} 8. Bc4 {[%clk 0:04:26.6]}
8... O-O {[%clk 0:04:31.9]} 9. O-O {[%clk 0:04:19.4]} 9... Bxc3 {[%clk
0:04:30.3]} 10. bxc3 {[%clk 0:04:19.3]} 10... Nxe4 {[%clk 0:04:29.2]} 11. Qd3
{[%clk 0:04:12]} 11... d5 {[%clk 0:04:26.2]} 12. Bb3 {[%clk 0:04:05.7]} 12...
Bf5 {[%clk 0:04:07.7]} 13. Ng5 {[%clk 0:03:20.7]} 13... Bg6 {[%clk 0:03:56.1]}
14. Qf3 {[%clk 0:03:11.6]} 14... Nxg5 {[%clk 0:03:52.1]} 15. Bxg5 {[%clk
0:03:05.2]} 15... Qxg5 {[%clk 0:03:50.4]} 16. Bxd5 {[%clk 0:03:02.8]} 16... Bh5
{[%clk 0:03:37.9]} 17. Qe4 {[%clk 0:02:45.7]} 17... Rae8 {[%clk 0:03:29.5]} 18.
Qd3 {[%clk 0:02:42.6]} 18... Qxd5 {[%clk 0:03:27.2]} 0-1

[Event "Live Chess"]
[Site "Chess.com"]
[Date "2023.05.20"]
[Round "-"]
[White "Richardallis"]
[Black "MarkLim1"]
[Result "1-0"]
[WhiteElo "1908"]
[BlackElo "1660"]
[TimeControl "300"]
[EndTime "14:28:04 PDT"]
[Termination "Richardallis won by resignation"]

1. d4 {[%clk 0:04:57.8]} 1... Nf6 {[%clk 0:04:58.5]} 2. Nf3 {[%clk 0:04:57.2]}
2... e6 {[%clk 0:04:57.7]} 3. Bg5 {[%clk 0:04:56.7]} 3... h6 {[%clk 0:04:56.8]}
4. Bxf6 {[%clk 0:04:55.5]} 4... Qxf6 {[%clk 0:04:55.8]} 5. Nbd2 {[%clk
0:04:55.1]} 5... d6 {[%clk 0:04:50.1]} 6. e4 {[%clk 0:04:54.2]} 6... Be7 {[%clk
0:04:48]} 7. c3 {[%clk 0:04:53.1]} 7... O-O {[%clk 0:04:46.9]} 8. Bd3 {[%clk
0:04:52.6]} 8... b6 {[%clk 0:04:46]} 9. e5 {[%clk 0:04:51.6]} 9... dxe5 {[%clk
0:04:44.6]} 10. dxe5 {[%clk 0:04:51.1]} 10... Qf4 {[%clk 0:04:43.1]} 11. g3
{[%clk 0:04:50.2]} 11... Qg4 {[%clk 0:04:38.6]} 12. h3 {[%clk 0:04:48.3]} 12...
Qh5 {[%clk 0:04:37.2]} 13. g4 {[%clk 0:04:43.7]} 1-0

[Event "Live Chess"]
[Site "Chess.com"]
[Date "2023.05.20"]
[Round "-"]
[White "Greenbecker"]
[Black "Missedidea"]
[Result "0-1"]
[WhiteElo "1637"]
[BlackElo "1741"]
[TimeControl "300"]
[EndTime "14:28:07 PDT"]
[Termination "Missedidea won by checkmate"]

1. e4 {[%clk 0:04:57.6]} 1... c5 {[%clk 0:04:57.4]} 2. Nf3 {[%clk 0:04:56.9]}
2... d6 {[%clk 0:04:55.7]} 3. d4 {[%clk 0:04:56.4]} 3... cxd4 {[%clk 0:04:54.4]}
4. Nxd4 {[%clk 0:04:55.2]} 4... Nf6 {[%clk 0:04:53.3]} 5. Nc3 {[%clk 0:04:52.7]}
5... g6 {[%clk 0:04:51.7]} 6. Bg5 {[%clk 0:04:51.6]} 6... Bg7 {[%clk 0:04:44.6]}
7. Bb5+ {[%clk 0:04:49]} 7... Bd7 {[%clk 0:04:42.2]} 8. Bxd7+ {[%clk 0:04:47.2]}
8... Nbxd7 {[%clk 0:04:39.2]} 9. O-O {[%clk 0:04:46.8]} 9... O-O {[%clk
0:04:37.3]} 10. Re1 {[%clk 0:04:45]} 10... Rc8 {[%clk 0:04:25]} 11. Nd5 {[%clk
0:04:40.6]} 11... h6 {[%clk 0:04:10.1]} 12. Nxf6+ {[%clk 0:04:36.7]} 12... Nxf6
{[%clk 0:04:03.7]} 13. Be3 {[%clk 0:04:34.4]} 13... Qd7 {[%clk 0:03:55.4]} 14.
Qd2 {[%clk 0:04:32.8]} 14... Ng4 {[%clk 0:03:49.9]} 15. Bf4 {[%clk 0:04:29.4]}
15... e5 {[%clk 0:03:46.8]} 16. h3 {[%clk 0:04:24.7]} 16... exf4 {[%clk
0:03:40.6]} 17. hxg4 {[%clk 0:04:22.7]} 17... Qxg4 {[%clk 0:03:38.5]} 18. f3
{[%clk 0:04:18.7]} 18... Qg5 {[%clk 0:03:28]} 19. c3 {[%clk 0:04:13.6]} 19... h5
{[%clk 0:03:24.1]} 20. Ne2 {[%clk 0:04:12.6]} 20... Be5 {[%clk 0:03:20.8]} 21.
Qd5 {[%clk 0:04:09.9]} 21... h4 {[%clk 0:03:16.8]} 22. Kh2 {[%clk 0:04:03.9]}
22... Kg7 {[%clk 0:03:07.6]} 23. Rad1 {[%clk 0:03:58.3]} 23... Rh8 {[%clk
0:03:03.2]} 24. Qxb7 {[%clk 0:03:53.1]} 24... h3 {[%clk 0:02:59.3]} 25. gxh3
{[%clk 0:03:42.3]} 25... Rxh3+ {[%clk 0:02:56.4]} 26. Kxh3 {[%clk 0:03:37.2]}
26... Rh8# {[%clk 0:02:54.7]} 0-1

[Event "Live Chess"]
[Site "Chess.com"]
[Date "2023.05.20"]
[Round "-"]
[White "Singapourfeuj"]
[Black "Nazar_777"]
[Result "1-0"]
[WhiteElo "2252"]
[BlackElo "1607"]
[TimeControl "300"]
[EndTime "14:28:11 PDT"]
[Termination "Singapourfeuj won by checkmate"]

1. d4 {[%clk 0:04:58.1]} 1... e6 {[%clk 0:04:58.7]} 2. e4 {[%clk 0:04:56.6]}
2... a6 {[%clk 0:04:51]} 3. Nf3 {[%clk 0:04:54.7]} 3... h5 {[%clk 0:04:50.5]} 4.
Nc3 {[%clk 0:04:52.6]} 4... c5 {[%clk 0:04:50]} 5. d5 {[%clk 0:04:51.5]} 5...
Nf6 {[%clk 0:04:47.9]} 6. Bg5 {[%clk 0:04:49.9]} 6... Qc7 {[%clk 0:04:46.6]} 7.
a4 {[%clk 0:04:42.8]} 7... c4 {[%clk 0:04:45.1]} 8. Qd4 {[%clk 0:04:38.5]} 8...
Bc5 {[%clk 0:04:42.1]} 9. Qxc4 {[%clk 0:04:37.5]} 9... Ng4 {[%clk 0:04:36.1]}
10. Be3 {[%clk 0:04:29.5]} 10... Nxe3 {[%clk 0:04:29.7]} 11. fxe3 {[%clk
0:04:28.7]} 11... Qb6 {[%clk 0:04:26.7]} 12. O-O-O {[%clk 0:04:26.2]} 12...
Bxe3+ {[%clk 0:04:24.3]} 13. Kb1 {[%clk 0:04:25.5]} 13... Bf4 {[%clk 0:04:18.3]}
14. Qxc8+ {[%clk 0:04:24]} 14... Qd8 {[%clk 0:04:08.8]} 15. Qxd8+ {[%clk
0:04:23]} 15... Kxd8 {[%clk 0:04:07.8]} 16. g3 {[%clk 0:04:21.5]} 16... Bd6
{[%clk 0:04:04.9]} 17. dxe6 {[%clk 0:04:20.1]} 17... Be7 {[%clk 0:04:02.6]} 18.
exf7 {[%clk 0:04:18.4]} 18... Rf8 {[%clk 0:04:01.4]} 19. Ne5 {[%clk 0:04:17.3]}
19... d6 {[%clk 0:03:59.4]} 20. a5 {[%clk 0:04:16.1]} 20... Nd7 {[%clk
0:03:56.8]} 21. Nxd7 {[%clk 0:04:15]} 21... Kxd7 {[%clk 0:03:55.8]} 22. Bc4
{[%clk 0:04:13.8]} 22... Rac8 {[%clk 0:03:53]} 23. Bd5 {[%clk 0:04:12.9]} 23...
Rc5 {[%clk 0:03:51]} 24. e5 {[%clk 0:04:06.7]} 24... Rxa5 {[%clk 0:03:49.6]} 25.
e6+ {[%clk 0:04:05.9]} 25... Kc7 {[%clk 0:03:47.6]} 26. b4 {[%clk 0:04:04.3]}
26... Ra3 {[%clk 0:03:43.2]} 27. Kb2 {[%clk 0:04:03.2]} 27... Rxc3 {[%clk
0:03:38.8]} 28. Kxc3 {[%clk 0:04:02.3]} 28... b5 {[%clk 0:03:37.8]} 29. Kb3
{[%clk 0:04:01.1]} 29... Kb6 {[%clk 0:03:35.7]} 30. Rhe1 {[%clk 0:03:56.7]}
30... a5 {[%clk 0:03:34.6]} 31. bxa5+ {[%clk 0:03:55]} 31... Kxa5 {[%clk
0:03:33.4]} 32. Ra1+ {[%clk 0:03:54]} 32... Kb6 {[%clk 0:03:32.1]} 33. Ra8
{[%clk 0:03:52.7]} 33... Kc5 {[%clk 0:03:22.6]} 34. Rxf8 {[%clk 0:03:49.1]}
34... Bxf8 {[%clk 0:03:21.3]} 35. e7 {[%clk 0:03:48.4]} 35... Bxe7 {[%clk
0:03:15.8]} 36. Rxe7 {[%clk 0:03:46.7]} 36... Kxd5 {[%clk 0:03:15.1]} 37. f8=Q
{[%clk 0:03:45]} 37... g5 {[%clk 0:03:14.3]} 38. Qf5+ {[%clk 0:03:43.6]} 38...
Kc6 {[%clk 0:03:12.5]} 39. Kb4 {[%clk 0:03:42.7]} 39... h4 {[%clk 0:03:11.1]}
40. Qxb5# {[%clk 0:03:41.6]} 1-0

[Event "Live Chess"]
[Site "Chess.com"]
[Date "2023.05.20"]
[Round "-"]
[White "FailsGambits"]
[Black "Inglaterra"]
[Result "0-1"]
[WhiteElo "1321"]
[BlackElo "2032"]
[TimeControl "300"]
[EndTime "14:28:16 PDT"]
[Termination "Inglaterra won on time"]

1. e4 {[%clk 0:04:59.7]} 1... c6 {[%clk 0:04:58.7]} 2. Nf3 {[%clk 0:04:58.5]}
2... d5 {[%clk 0:04:58.6]} 3. exd5 {[%clk 0:04:58.4]} 3... cxd5 {[%clk
0:04:57.9]} 4. d4 {[%clk 0:04:58.1]} 4... Nc6 {[%clk 0:04:57.4]} 5. Bb5 {[%clk
0:04:56.5]} 5... Bg4 {[%clk 0:04:56.7]} 6. Nc3 {[%clk 0:04:49.1]} 6... e6 {[%clk
0:04:55.6]} 7. h3 {[%clk 0:04:46.5]} 7... Bh5 {[%clk 0:04:53.7]} 8. Bf4 {[%clk
0:04:41.6]} 8... Bd6 {[%clk 0:04:52.9]} 9. Bxd6 {[%clk 0:04:21.9]} 9... Qxd6
{[%clk 0:04:52.8]} 10. O-O {[%clk 0:04:06.1]} 10... Nf6 {[%clk 0:04:48.9]} 11.
Qd3 {[%clk 0:04:02]} 11... O-O {[%clk 0:04:39]} 12. Rfe1 {[%clk 0:03:48.6]}
12... Bxf3 {[%clk 0:04:36.7]} 13. Bxc6 {[%clk 0:03:40.1]} 13... Bh5 {[%clk
0:04:25.8]} 14. Ba4 {[%clk 0:03:31.1]} 14... Bg6 {[%clk 0:04:19.1]} 15. Qg3
{[%clk 0:03:24.7]} 15... Qb6 {[%clk 0:04:15.3]} 16. Bb3 {[%clk 0:03:17.6]} 16...
Qxd4 {[%clk 0:04:12.7]} 17. Rad1 {[%clk 0:03:09.7]} 17... Qc5 {[%clk 0:04:11.4]}
18. Na4 {[%clk 0:03:03.2]} 18... Qc6 {[%clk 0:04:09.1]} 19. Re3 {[%clk
0:02:49.2]} 19... Ne4 {[%clk 0:04:04]} 20. Qf3 {[%clk 0:02:28.5]} 20... Rac8
{[%clk 0:03:58.7]} 21. Nc3 {[%clk 0:02:21]} 21... d4 {[%clk 0:03:42.5]} 22. Rxd4
{[%clk 0:02:09.3]} 22... Nxc3 {[%clk 0:03:41.2]} 23. Rxc3 {[%clk 0:01:59.5]}
23... Qxf3 {[%clk 0:03:38.6]} 24. Rxf3 {[%clk 0:01:59.4]} 24... Bxc2 {[%clk
0:03:36]} 25. Rd7 {[%clk 0:01:24.2]} 25... Be4 {[%clk 0:03:29.6]} 26. Re3 {[%clk
0:01:13.5]} 26... Bc6 {[%clk 0:03:16.8]} 27. Rdd3 {[%clk 0:01:07.9]} 27... Rcd8
{[%clk 0:03:15.4]} 28. Bc2 {[%clk 0:00:42.3]} 28... Rd5 {[%clk 0:03:07]} 29. Bb3
{[%clk 0:00:32.7]} 29... Rxd3 {[%clk 0:03:00.8]} 30. Rxd3 {[%clk 0:00:32.6]}
30... Rc8 {[%clk 0:02:58.4]} 31. Rc3 {[%clk 0:00:25.5]} 31... Kf8 {[%clk
0:02:55.3]} 32. Ba4 {[%clk 0:00:24.6]} 32... Ke7 {[%clk 0:02:54.5]} 33. Bxc6
{[%clk 0:00:21.6]} 33... Rxc6 {[%clk 0:02:54.4]} 34. Rxc6 {[%clk 0:00:20.6]}
34... bxc6 {[%clk 0:02:54.3]} 35. Kf1 {[%clk 0:00:20.2]} 35... Kd6 {[%clk
0:02:53]} 36. Ke2 {[%clk 0:00:19.9]} 36... Kd5 {[%clk 0:02:52.8]} 37. Kd3 {[%clk
0:00:19.7]} 37... e5 {[%clk 0:02:51.6]} 38. a4 {[%clk 0:00:16.8]} 38... c5
{[%clk 0:02:49.6]} 39. b3 {[%clk 0:00:14.7]} 39... f5 {[%clk 0:02:48.1]} 40. f3
{[%clk 0:00:14]} 40... f4 {[%clk 0:02:44.3]} 41. a5 {[%clk 0:00:11.5]} 41... a6
{[%clk 0:02:42.6]} 42. h4 {[%clk 0:00:09.1]} 42... g6 {[%clk 0:02:40.9]} 43. Ke2
{[%clk 0:00:05.9]} 43... e4 {[%clk 0:02:39.1]} 44. fxe4+ {[%clk 0:00:05]} 44...
Kxe4 {[%clk 0:02:38.8]} 45. Kd2 {[%clk 0:00:03.1]} 45... h6 {[%clk 0:02:37.2]}
46. Kc3 {[%clk 0:00:01.9]} 46... g5 {[%clk 0:02:34.6]} 47. hxg5 {[%clk
0:00:00.8]} 47... hxg5 {[%clk 0:02:33.4]} 48. Kc4 {[%clk 0:00:00.5]} 48... g4
{[%clk 0:02:32.9]} 49. Kxc5 {[%clk 0:00:00.4]} 49... f3 {[%clk 0:02:32.3]} 0-1

[Event "Live Chess"]
[Site "Chess.com"]
[Date "2023.05.20"]
[Round "-"]
[White "toog"]
[Black "Pandreq"]
[Result "1-0"]
[WhiteElo "2615"]
[BlackElo "1255"]
[TimeControl "300"]
[EndTime "14:28:17 PDT"]
[Termination "toog won on time"]

1. e4 {[%clk 0:04:57.9]} 1... Nf6 {[%clk 0:04:58.3]} 2. e5 {[%clk 0:04:56.6]}
2... Nd5 {[%clk 0:04:57.4]} 3. c4 {[%clk 0:04:55.7]} 3... Nb6 {[%clk 0:04:56.5]}
4. c5 {[%clk 0:04:55.3]} 4... Nd5 {[%clk 0:04:55.4]} 5. Nc3 {[%clk 0:04:52.7]}
5... c6 {[%clk 0:04:53.6]} 6. Bc4 {[%clk 0:04:49.3]} 6... e6 {[%clk 0:04:49.7]}
7. d4 {[%clk 0:04:47]} 7... b5 {[%clk 0:04:46.4]} 8. Bb3 {[%clk 0:04:44.2]} 8...
Be7 {[%clk 0:04:34.8]} 9. Nf3 {[%clk 0:04:41.7]} 9... O-O {[%clk 0:04:32.8]} 10.
O-O {[%clk 0:04:39.9]} 10... a5 {[%clk 0:04:26.6]} 11. Ne4 {[%clk 0:04:35.7]}
11... Ba6 {[%clk 0:04:03.7]} 12. Re1 {[%clk 0:04:30.8]} 12... b4 {[%clk
0:03:50.8]} 13. Bc2 {[%clk 0:04:27.2]} 13... Bb5 {[%clk 0:03:34.6]} 14. Nd6
{[%clk 0:04:16.6]} 14... Nc7 {[%clk 0:03:20.9]} 15. Bf4 {[%clk 0:04:07.4]} 15...
Bxd6 {[%clk 0:03:12.5]} 16. cxd6 {[%clk 0:04:03.4]} 16... Nd5 {[%clk 0:03:11.8]}
17. Bg3 {[%clk 0:04:01.1]} 17... Qb6 {[%clk 0:02:49.7]} 18. h4 {[%clk
0:03:58.1]} 18... a4 {[%clk 0:02:44.7]} 19. Qb1 {[%clk 0:03:38.8]} 19... h6
{[%clk 0:02:30.3]} 20. Bh7+ {[%clk 0:03:29.1]} 20... Kh8 {[%clk 0:02:29.1]} 21.
Be4 {[%clk 0:03:29]} 21... a3 {[%clk 0:02:22.5]} 22. b3 {[%clk 0:03:26.6]} 22...
Nc3 {[%clk 0:02:21]} 23. Qc1 {[%clk 0:03:24.6]} 23... Nxe4 {[%clk 0:02:14.2]}
24. Rxe4 {[%clk 0:03:24.5]} 24... Bd3 {[%clk 0:02:03.2]} 25. Rg4 {[%clk
0:03:20.8]} 25... Bf5 {[%clk 0:01:48.3]} 26. Rf4 {[%clk 0:03:16.2]} 26... g5
{[%clk 0:01:35.9]} 27. hxg5 {[%clk 0:03:14.3]} 27... hxg5 {[%clk 0:01:34.9]} 28.
Nxg5 {[%clk 0:03:13.7]} 28... Rg8 {[%clk 0:01:22.5]} 29. Rxf5 {[%clk 0:03:02.7]}
29... exf5 {[%clk 0:01:15.9]} 30. Qf4 {[%clk 0:03:02.6]} 30... Rg7 {[%clk
0:01:04.6]} 31. Rd1 {[%clk 0:02:49.9]} 31... Na6 {[%clk 0:00:43.9]} 32. Qxf5
{[%clk 0:02:43.9]} 32... Rag8 {[%clk 0:00:35]} 33. Ne4 {[%clk 0:02:41.6]} 33...
c5 {[%clk 0:00:20.6]} 34. Nf6 {[%clk 0:02:35.1]} 34... Rg5 {[%clk 0:00:14.3]}
35. Qh3+ {[%clk 0:02:30.1]} 35... Kg7 {[%clk 0:00:03.6]} 36. Bf4 {[%clk
0:02:27.1]} 1-0

[Event "Live Chess"]
[Site "Chess.com"]
[Date "2023.05.20"]
[Round "-"]
[White "jennybobby44"]
[Black "parcellforce"]
[Result "1-0"]
[WhiteElo "1855"]
[BlackElo "1370"]
[TimeControl "300"]
[EndTime "14:29:04 PDT"]
[Termination "jennybobby44 won by resignation"]

1. Nf3 {[%clk 0:04:58.3]} 1... Nf6 {[%clk 0:04:57.2]} 2. g3 {[%clk 0:04:57.4]}
2... d5 {[%clk 0:04:52]} 3. d4 {[%clk 0:04:56.5]} 3... e6 {[%clk 0:04:51.1]} 4.
Bg2 {[%clk 0:04:56]} 4... c5 {[%clk 0:04:49.1]} 5. dxc5 {[%clk 0:04:54.2]} 5...
Bxc5 {[%clk 0:04:48.7]} 6. O-O {[%clk 0:04:53.5]} 6... Bf8 {[%clk 0:04:48.3]} 7.
c4 {[%clk 0:04:52.8]} 7... Nc6 {[%clk 0:04:44.1]} 8. cxd5 {[%clk 0:04:49.9]}
8... Qxd5 {[%clk 0:04:43.5]} 9. a3 {[%clk 0:04:40]} 9... Qxd1 {[%clk 0:04:42.5]}
10. Rxd1 {[%clk 0:04:39.6]} 10... Be7 {[%clk 0:04:40.7]} 11. Nc3 {[%clk
0:04:38.6]} 11... O-O {[%clk 0:04:39.4]} 12. Bf4 {[%clk 0:04:34.5]} 12... Rd8
{[%clk 0:04:35.9]} 13. Ne5 {[%clk 0:04:33.5]} 13... Rxd1+ {[%clk 0:04:30.1]} 14.
Rxd1 {[%clk 0:04:32.7]} 14... Nxe5 {[%clk 0:04:30]} 15. Bxe5 {[%clk 0:04:31.9]}
15... Ng4 {[%clk 0:04:27.3]} 16. Bc7 {[%clk 0:04:27.8]} 16... Nf6 {[%clk
0:04:25.9]} 17. Nb5 {[%clk 0:04:09.5]} 17... h6 {[%clk 0:04:09.1]} 18. Nd6
{[%clk 0:04:06.8]} 18... Bxd6 {[%clk 0:04:01.8]} 19. Rxd6 {[%clk 0:04:05.4]}
19... Kh7 {[%clk 0:04:01.7]} 20. Rd8 {[%clk 0:03:59.9]} 20... Kg6 {[%clk
0:03:40.3]} 21. h3 {[%clk 0:03:51.3]} 21... Kh7 {[%clk 0:03:38.5]} 22. a4 {[%clk
0:03:40.2]} 22... Kg6 {[%clk 0:03:37.4]} 23. a5 {[%clk 0:03:39.4]} 23... Kh7
{[%clk 0:03:31.6]} 24. a6 {[%clk 0:03:37.9]} 24... Nd5 {[%clk 0:03:19.4]} 25.
Bxd5 {[%clk 0:03:36.2]} 25... exd5 {[%clk 0:03:17.3]} 26. Rxd5 {[%clk
0:03:26.1]} 26... bxa6 {[%clk 0:03:15.9]} 27. Bf4 {[%clk 0:03:09.9]} 27... Bb7
{[%clk 0:03:14]} 28. Rd7 {[%clk 0:03:06.5]} 28... Bc6 {[%clk 0:02:57.9]} 29.
Rxf7 {[%clk 0:03:01.8]} 29... Rd8 {[%clk 0:02:57.4]} 30. f3 {[%clk 0:02:49.9]}
30... a5 {[%clk 0:02:32.5]} 31. Be5 {[%clk 0:02:46.7]} 31... Kg6 {[%clk
0:02:27.6]} 32. Rxg7+ {[%clk 0:02:40.7]} 32... Kf5 {[%clk 0:02:27.3]} 33. Bc3
{[%clk 0:02:38.1]} 33... a4 {[%clk 0:02:25.4]} 34. Rxa7 {[%clk 0:02:35.2]} 34...
Rd1+ {[%clk 0:02:24.8]} 35. Kf2 {[%clk 0:02:34]} 35... Rd7 {[%clk 0:02:22.8]}
36. Ra5+ {[%clk 0:02:30.2]} 36... Kg6 {[%clk 0:02:19.7]} 37. h4 {[%clk
0:02:29.6]} 37... Rd8 {[%clk 0:02:07.8]} 38. Re5 {[%clk 0:02:27.2]} 1-0

[Event "Live Chess"]
[Site "Chess.com"]
[Date "2023.05.20"]
[Round "-"]
[White "diana21strabt"]
[Black "VovaOvchar1990"]
[Result "1-0"]
[WhiteElo "1697"]
[BlackElo "1222"]
[TimeControl "300"]
[EndTime "14:29:11 PDT"]
[Termination "diana21strabt won on time"]

1. e4 {[%clk 0:04:58.6]} 1... e5 {[%clk 0:04:57.7]} 2. Nf3 {[%clk 0:04:57.6]}
2... Nc6 {[%clk 0:04:56.4]} 3. d4 {[%clk 0:04:56.7]} 3... Nxd4 {[%clk
0:04:54.7]} 4. Nxd4 {[%clk 0:04:55.2]} 4... exd4 {[%clk 0:04:53.4]} 5. Bc4
{[%clk 0:04:53.6]} 5... Bb4+ {[%clk 0:04:51]} 6. c3 {[%clk 0:04:51.5]} 6... dxc3
{[%clk 0:04:49.1]} 7. O-O {[%clk 0:04:50.4]} 7... cxb2 {[%clk 0:04:45.7]} 8.
Bxb2 {[%clk 0:04:49.4]} 8... Nf6 {[%clk 0:04:41.1]} 9. Qb3 {[%clk 0:04:48.2]}
9... Qe7 {[%clk 0:04:20.5]} 10. e5 {[%clk 0:04:46.4]} 10... Ng4 {[%clk 0:04:05]}
11. h3 {[%clk 0:04:45]} 11... Nxf2 {[%clk 0:03:44.5]} 12. Rxf2 {[%clk
0:04:38.9]} 12... Bc5 {[%clk 0:03:40.1]} 13. Bxf7+ {[%clk 0:04:36.4]} 13... Kd8
{[%clk 0:03:31.8]} 14. Nd2 {[%clk 0:04:23.6]} 14... Rf8 {[%clk 0:03:24.3]} 15.
e6 {[%clk 0:04:16.2]} 15... dxe6 {[%clk 0:02:51.5]} 16. Ne4 {[%clk 0:04:14.1]}
16... Bxf2+ {[%clk 0:02:46.1]} 17. Nxf2 {[%clk 0:04:09.1]} 17... Rxf7 {[%clk
0:02:39.7]} 18. Rd1+ {[%clk 0:04:07.5]} 18... Bd7 {[%clk 0:02:25]} 19. Qxb7
{[%clk 0:04:05.6]} 19... Rc8 {[%clk 0:02:08.7]} 20. Qxa7 {[%clk 0:03:54.6]}
20... Ke8 {[%clk 0:01:43.1]} 21. Ba3 {[%clk 0:03:47.5]} 21... Qf6 {[%clk
0:01:23.5]} 22. Ne4 {[%clk 0:03:41.2]} 22... Qf5 {[%clk 0:00:51.4]} 23. Qb7
{[%clk 0:03:03.2]} 23... Qa5 {[%clk 0:00:37.6]} 24. Nc5 {[%clk 0:02:22.4]} 24...
Qxa3 {[%clk 0:00:32.2]} 25. Nxd7 {[%clk 0:02:21]} 25... Qe3+ {[%clk 0:00:23.1]}
26. Kh1 {[%clk 0:02:17.2]} 26... Rxd7 {[%clk 0:00:18]} 27. Qxc8+ {[%clk
0:02:15.3]} 27... Kf7 {[%clk 0:00:12.5]} 28. Rxd7+ {[%clk 0:02:12.5]} 28... Kf6
{[%clk 0:00:09.8]} 29. Qf8+ {[%clk 0:02:10.7]} 29... Kg6 {[%clk 0:00:07.7]} 30.
Qf7+ {[%clk 0:02:09.1]} 30... Kg5 {[%clk 0:00:02.1]} 31. Qxg7+ {[%clk 0:02:08]}
31... Kf5 {[%clk 0:00:01.5]} 32. Qxh7+ {[%clk 0:02:06.6]} 1-0

[Event "Live Chess"]
[Site "Chess.com"]
[Date "2023.05.20"]
[Round "-"]
[White "Stanbad1"]
[Black "Jonmill"]
[Result "1-0"]
[WhiteElo "2393"]
[BlackElo "1250"]
[TimeControl "300"]
[EndTime "14:29:12 PDT"]
[Termination "Stanbad1 won on time"]

1. d4 {[%clk 0:04:55.8]} 1... Nf6 {[%clk 0:04:57.9]} 2. Nc3 {[%clk 0:04:55]}
2... d6 {[%clk 0:04:56.5]} 3. e4 {[%clk 0:04:53.8]} 3... g6 {[%clk 0:04:55.8]}
4. Be3 {[%clk 0:04:53.4]} 4... Bg7 {[%clk 0:04:55.4]} 5. f3 {[%clk 0:04:53]}
5... O-O {[%clk 0:04:53.9]} 6. Qd2 {[%clk 0:04:52.5]} 6... c5 {[%clk 0:04:49]}
7. dxc5 {[%clk 0:04:50.5]} 7... dxc5 {[%clk 0:04:47.2]} 8. Qxd8 {[%clk
0:04:50.4]} 8... Rxd8 {[%clk 0:04:46.2]} 9. Bxc5 {[%clk 0:04:48.8]} 9... e6
{[%clk 0:04:42.6]} 10. Bd3 {[%clk 0:04:46.7]} 10... b6 {[%clk 0:04:38.3]} 11.
Be3 {[%clk 0:04:44.2]} 11... Bb7 {[%clk 0:04:35.2]} 12. Nge2 {[%clk 0:04:42.1]}
12... Nc6 {[%clk 0:04:33.9]} 13. O-O-O {[%clk 0:04:39.7]} 13... Ne5 {[%clk
0:04:32.6]} 14. h3 {[%clk 0:04:34.8]} 14... Nxd3+ {[%clk 0:04:19.8]} 15. cxd3
{[%clk 0:04:32.8]} 15... Ba6 {[%clk 0:04:18.3]} 16. d4 {[%clk 0:04:30.9]} 16...
Rac8 {[%clk 0:04:10.1]} 17. Kb1 {[%clk 0:04:28.1]} 17... Ne8 {[%clk 0:03:53.3]}
18. Nc1 {[%clk 0:04:24.4]} 18... f5 {[%clk 0:03:36.5]} 19. Nd3 {[%clk
0:04:21.6]} 19... Bxd4 {[%clk 0:03:22.1]} 20. Bxd4 {[%clk 0:04:18.5]} 20... Rxd4
{[%clk 0:03:19.8]} 21. Ne5 {[%clk 0:04:17.9]} 21... Rxd1+ {[%clk 0:02:33.3]} 22.
Rxd1 {[%clk 0:04:14.9]} 22... Nf6 {[%clk 0:02:28.3]} 23. exf5 {[%clk 0:04:11.8]}
23... exf5 {[%clk 0:02:24.7]} 24. Rd6 {[%clk 0:04:07.2]} 24... Ne8 {[%clk
0:02:11.9]} 25. Rd7 {[%clk 0:04:03.3]} 25... Bf1 {[%clk 0:01:56.3]} 26. Nd5
{[%clk 0:04:00]} 26... Ra8 {[%clk 0:01:21.5]} 27. Ne7+ {[%clk 0:03:53.7]} 27...
Kf8 {[%clk 0:01:14.9]} 28. g4 {[%clk 0:03:44.4]} 28... Bxh3 {[%clk 0:01:11.1]}
29. gxf5 {[%clk 0:03:39]} 29... Bxf5+ {[%clk 0:01:03.1]} 30. Nxf5 {[%clk
0:03:35.9]} 30... gxf5 {[%clk 0:01:03]} 31. Rxh7 {[%clk 0:03:35.4]} 31... Kg8
{[%clk 0:00:55.9]} 32. Rf7 {[%clk 0:03:31.9]} 32... Ng7 {[%clk 0:00:40.8]} 33.
f4 {[%clk 0:03:29.7]} 33... a5 {[%clk 0:00:37.2]} 34. Rb7 {[%clk 0:03:28]} 34...
Ne6 {[%clk 0:00:19]} 35. Ng6 {[%clk 0:03:25]} 1-0